bitfinex/quotes_ETHUSD_20240927
["timestamp","ask_amount","ask_price","bid_price","bid_amount"]
[1727446903526,0.7743,2679.9,2679.8,3.73162]
[1727446903731,3.992,2680.0,2679.9,3.73148]
[1727446904290,3.992,2680.0,2679.9,4.55987]
[1727446905233,3.992,2680.0,2679.9,3.73148]
[1727446906662,3.992,2680.0,2679.9,4.28148]
[1727446907742,3.992,2680.0,2679.9,3.73148]
[1727446908342,3.992,2680.0,2679.9,7.28148]
[1727446908545,3.992,2680.0,2679.9,8.03678]
[1727446908865,3.992,2680.0,2679.9,9.21362]
[1727446911956,3.41844237,2680.0,2679.9,9.51648725]
[1727446912557,3.41844237,2680.0,2679.9,9.21362]
[1727446912736,3.41844237,2680.0,2679.9,44.21362]
[1727446913270,3.41844237,2680.0,2679.9,8.66362]
[1727446914888,3.41844237,2680.0,2679.9,9.21362]
[1727446917279,3.41844237,2680.0,2679.9,8.66362]
[1727446917924,3.41844237,2680.0,2679.9,9.21362]
[1727446918474,3.41844237,2680.0,2679.9,13.38948247]
[1727446920485,3.41844237,2680.0,2679.9,17.33448247]
[1727446920769,3.41844237,2680.0,2679.9,13.38948247]
[1727446922276,3.41844237,2680.0,2679.9,12.83948247]
[1727446922627,3.41844237,2680.0,2679.9,13.14196675]
[1727446922879,0.1286091,2680.2,2679.9,13.14196675]
[1727446922880,0.1286091,2680.2,2680.1,7.4826]
[1727446923080,0.005,2680.9,2680.8,7.48162]
[1727446923375,0.0008,2681.3,2681.2,7.50147]
[1727446923538,0.4,2682.1,2681.5,7.50105]
[1727446923738,0.4,2682.1,2681.5,7.57560654]
[1727446923933,0.4,2682.1,2681.6,7.27911]
[1727446924333,0.4,2682.1,2681.6,8.05091]
[1727446925271,0.4,2682.1,2681.8,3.0]
[1727446925482,0.4,2682.1,2682.0,8.03956]
[1727446925631,0.4,2682.1,2682.0,9.61651715]
[1727446926131,0.88440438,2683.1,2682.6,1.235]
[1727446926376,0.88440438,2683.1,2682.8,3.72744]
[1727446927347,0.88440438,2683.1,2682.8,4.27744]
[1727446927569,0.88440438,2683.1,2682.8,11.44298323]
[1727446927873,0.88440438,2683.1,2682.8,13.03530955]
[1727446928046,0.88440438,2683.1,2683.0,8.10367]
[1727446930163,0.11575665,2684.6,2683.9,0.8148]
[1727446930349,0.11575665,2684.6,2684.5,5.08988]
[1727446930671,0.11575665,2684.6,2684.5,8.08988]
[1727446931452,0.11575665,2684.6,2684.5,8.6027777]
[1727446931646,0.9139,2685.0,2684.9,7.27453]
[1727446931874,0.1286091,2685.6,2685.5,7.2737]
[1727446932207,0.0008,2686.7,2686.5,3.72231]
[1727446932547,0.0008,2686.7,2686.5,4.27231]
[1727446932892,0.0008,2686.7,2686.6,11.43771323]
[1727446933187,0.0008,2686.7,2686.6,3.72217]
[1727446933490,3.44151662,2688.0,2687.6,3.72076]
[1727446933805,2.63031662,2688.0,2687.9,3.72037]
[1727446933948,2.63031662,2688.0,2687.4,3.72097]
[1727446934148,2.63031662,2688.0,2687.7,3.72056]
[1727446934460,2.63031662,2688.0,2687.9,3.72037]
[1727446934858,2.63031662,2688.0,2687.7,3.7206]
[1727446935060,2.63031662,2688.0,2687.0,3.8179]
[1727446935245,4.54008,2687.9,2687.0,3.72151]
[1727446935445,0.71703966,2687.8,2686.6,3.72211]
[1727446935688,0.8197,2687.9,2687.4,3.72104]
[1727446935856,0.8197,2687.9,2686.4,3.781]
[1727446935857,0.8197,2687.9,2687.1,3.72148]
[1727446936244,0.8197,2687.9,2686.3,1.23057522]
[1727446936245,0.8197,2687.9,2686.3,4.23057522]
[1727446936488,2.63031662,2688.0,2686.2,3.72261]
[1727446936489,0.8291,2687.0,2686.2,3.72261]
[1727446936646,3.72178,2686.9,2686.1,3.72275]
[1727446936851,0.8291,2687.0,2686.3,3.72259]
[1727446937247,0.8291,2687.0,2685.5,0.57194189]
[1727446937565,0.8291,2686.5,2686.0,3.72299]
[1727446937757,0.8291,2686.5,2685.7,3.72338]
[1727446937997,1.284224,2686.5,2685.8,0.02453954]
[1727446938297,4.55144,2686.5,2685.8,3.72328]
[1727446938451,0.8291,2687.0,2685.8,3.72317]
[1727446938650,0.8291,2687.0,2686.3,3.72246]
[1727446939059,0.8291,2687.0,2685.6,0.7691]
[1727446939060,4.55083,2687.0,2686.1,3.72282]
[1727446939270,0.455083,2686.9,2686.1,3.72282]
[1727446939479,0.7988,2686.8,2686.1,3.72282]
[1727446939883,4.52083,2686.8,2686.0,3.72295]
[1727446940091,4.52083,2686.8,2686.1,3.72275]
[1727446940452,0.7988,2686.8,2686.3,3.72254]
[1727446940710,0.7616,2686.7,2685.1,3.72414]
[1727446940864,0.7991,2686.4,2684.4,3.72521]
[1727446941067,4.87929134,2686.8,2685.4,3.72375]
[1727446941068,3.723,2686.1,2685.4,3.72375]
[1727446941272,0.7991,2686.2,2685.6,3.57283]
[1727446941577,0.452173,2686.1,2685.6,3.57283]
[1727446941787,4.175043,2686.1,2685.4,3.72378]
[1727446942255,4.55413,2686.0,2685.2,7.44808]
[1727446942478,0.831,2686.0,2685.9,3.72314]
[1727446942987,0.831,2686.8,2686.4,3.72231]
[1727446943374,0.831,2686.8,2686.2,3.72271]
[1727446943914,0.831,2686.8,2686.0,3.72295]
[1727446944120,0.831,2686.8,2686.2,3.72264]
[1727446944475,0.831,2686.8,2686.5,3.72222]
[1727446944676,0.831,2686.8,2686.3,3.72249]
[1727446944874,0.831,2686.8,2686.4,3.72241]
[1727446945115,3.72212,2686.7,2686.0,3.72293]
[1727446945317,0.455312,2686.6,2685.9,3.72303]
[1727446945621,0.831,2686.8,2685.9,3.72311]
[1727446945622,4.55301,2686.8,2685.9,3.72311]
[1727446945913,4.55301,2686.8,2685.3,3.8065]
[1727446945914,3.72275,2686.2,2685.5,3.72364]
[1727446946079,0.453745,2686.1,2685.7,3.72332]
[1727446946281,0.8147,2686.3,2685.7,3.72332]
[1727446946523,0.779,2686.1,2685.3,3.72388]
[1727446946823,0.779,2686.1,2685.4,3.72384]
[1727446947115,0.779,2686.1,2685.8,3.72326]
[1727446947327,0.779,2686.1,2685.0,3.0]
[1727446947613,3.72302,2686.0,2685.5,3.7236]
[1727446947812,0.779,2686.1,2685.5,3.7236]
[1727446948029,1.229182,2686.1,2685.5,3.7236]
[1727446948177,0.779,2686.1,2685.7,3.72332]
[1727446948519,3.72273,2686.2,2686.1,0.471]
[1727446948692,3.72262,2686.3,2686.1,0.471]
[1727446949020,4.467241,2686.2,2686.1,0.471]
[1727446949316,3.72267,2686.3,2686.1,0.471]
[1727446949622,3.72273,2686.2,2686.1,0.471]
[1727446949788,3.72239,2686.5,2686.1,0.471]
[1727446949789,3.72253,2686.4,2686.1,0.471]
[1727446949995,0.744492,2686.3,2686.1,0.471]
[1727446950196,3.72273,2686.2,2686.1,0.471]
[1727446950733,0.744492,2686.3,2686.1,0.471]
[1727446951024,3.72273,2686.2,2686.1,0.471]
[1727446951332,4.49533,2686.2,2686.1,0.471]
[1727446953502,0.7726,2686.2,2686.1,0.471]
[1727446953748,0.7726,2686.2,2686.1,4.19386]
[1727446954099,0.7726,2686.2,2686.1,0.471]
[1727446954299,0.7726,2686.2,2686.1,4.19386]
[1727446954521,4.50189,2686.9,2686.3,3.7225]
[1727446954698,3.72197,2686.8,2686.2,3.72265]
[1727446955019,4.50189,2686.9,2686.2,3.72265]
[1727446955238,4.50189,2686.9,2686.1,4.19386]
[1727446955239,3.72212,2686.7,2686.1,4.19386]
[1727446955387,3.72218,2686.6,2686.1,4.19386]
[1727446955590,4.466597,2686.6,2686.1,4.19385]
[1727446955786,3.72273,2686.2,2686.1,0.471]
[1727446956239,0.7801,2686.4,2686.1,0.471]
[1727446956599,0.7801,2686.4,2686.1,4.19386]
[1727446957136,0.7801,2686.4,2686.1,4.19379]
[1727446957321,0.7801,2686.9,2686.3,3.72259]
[1727446957530,5.324316,2686.9,2686.3,3.72259]
[1727446957734,4.50198,2686.9,2686.3,7.44508]
[1727446957914,4.50197,2686.9,2686.3,3.72249]
[1727446958100,4.50197,2686.9,2686.3,7.445]
[1727446958303,4.50197,2686.9,2686.3,3.72249]
[1727446958543,3.72192,2686.8,2686.3,3.72249]
[1727446958748,4.50197,2686.9,2686.3,3.72249]
[1727446958903,3.72204,2686.7,2686.1,4.1938]
[1727446959105,3.72218,2686.6,2686.1,4.1938]
[1727446959502,3.72254,2686.4,2686.1,0.471]
[1727446959709,3.72224,2686.6,2686.1,0.471]
[1727446959710,3.72228,2686.6,2686.1,0.471]
[1727446959945,0.7588,2686.8,2686.1,0.471]
[1727446960165,0.8137,2686.2,2686.1,0.471]
[1727446960307,4.990059,2686.2,2686.1,0.471]
[1727446960512,1.267329,2686.2,2686.1,0.471]
[1727446960712,0.8137,2686.2,2686.1,0.471]
[1727446961111,6.72095,2687.5,2686.1,0.471]
[1727446961112,0.7692,2686.6,2686.1,0.471]
[1727446961356,4.4914,2686.6,2686.1,4.19384]
[1727446961655,0.7692,2686.6,2686.2,3.72263]
[1727446962070,3.72148,2687.1,2686.5,3.7222]
[1727446962218,3.72148,2687.1,2686.5,7.44443]
[1727446962415,3.72148,2687.1,2686.5,3.7222]
[1727446962416,0.8281,2687.0,2686.5,3.7222]
[1727446962732,0.8281,2687.0,2686.6,3.79650413]
[1727446962949,0.8281,2687.0,2686.6,3.72207]
[1727446963522,0.8281,2687.0,2686.6,7.44415]
[1727446963744,0.8281,2687.0,2686.4,3.72236]
[1727446963918,1.283071,2687.0,2686.5,3.72228]
[1727446964535,0.8281,2687.0,2686.1,1.2731]
[1727446964763,0.8281,2687.0,2686.5,3.72229]
[1727446964959,0.8281,2687.0,2686.7,3.72201]
[1727446965834,0.8281,2687.0,2686.1,0.471]
[1727446966150,4.54974,2687.0,2686.3,7.44499]
[1727446966463,5.376857,2687.0,2686.4,3.72243]
[1727446966874,0.8281,2687.0,2686.7,3.72194]
[1727446967041,0.8281,2687.0,2686.5,3.72223]
[1727446967242,3.72204,2686.7,2686.1,0.471]
[1727446967433,0.7804,2686.4,2686.1,0.471]
[1727446967842,3.72263,2686.3,2686.1,0.471]
[1727446968167,4.49383,2686.2,2686.1,0.471]
[1727446968666,0.7711,2686.2,2686.1,0.471]
[1727446969347,0.8041,2686.5,2686.1,0.471]
[1727446969519,0.8041,2687.0,2686.1,0.890392]
[1727446969719,0.8041,2687.0,2686.7,3.72203]
[1727446969925,0.8041,2687.0,2686.7,3.72194]
[1727446970657,0.3331,2687.0,2686.7,3.72193]
[1727446970872,0.05,2688.4,2685.9,3.7616]
[1727446970873,3.72073,2687.7,2686.8,3.72181]
[1727446971153,3.72133,2687.3,2686.7,3.72199]
[1727446971330,3.72099,2687.5,2686.9,3.72175]
[1727446971532,3.72099,2687.5,2686.8,3.72187]
[1727446971533,3.72115,2687.4,2686.8,3.72187]
[1727446971923,3.72115,2687.4,2686.6,3.72215]
[1727446971924,3.72099,2687.5,2686.6,3.72215]
[1727446972122,3.72129,2687.3,2686.6,3.72207]
[1727446972319,4.093419,2687.3,2686.6,3.72207]
[1727446972561,3.72149,2687.1,2686.6,3.72207]
[1727446972771,3.72149,2687.1,2686.4,3.72236]
[1727446972921,3.7218,2686.9,2686.1,3.72282]
[1727446973246,3.7218,2686.9,2686.3,3.7225]
[1727446973247,7.44365,2686.9,2686.3,3.7225]
[1727446973445,3.72211,2686.7,2686.1,3.7228]
[1727446973671,3.7218,2686.9,2686.3,3.72249]
[1727446973963,4.4912,2686.9,2686.3,3.72249]
[1727446974160,0.7694,2686.9,2686.5,3.72221]
[1727446974321,3.72161,2687.1,2686.5,3.72221]
[1727446974525,0.7694,2687.2,2686.7,3.72201]
[1727446975055,3.72109,2687.4,2686.8,3.7218]
[1727446975361,4.49037,2687.5,2686.9,3.79616745]
[1727446975531,4.49037,2687.5,2687.0,3.72159]
[1727446975532,0.7694,2687.5,2687.0,3.72159]
[1727446975741,0.7694,2687.5,2687.3,3.72112]
[1727446976303,0.7603,2687.9,2687.3,3.72112]
[1727446976473,4.81981166,2687.9,2686.4,0.8134]
[1727446976763,3.72072,2687.7,2687.2,3.72132]
[1727446976967,3.72087,2687.6,2687.0,3.72157]
[1727446977125,3.72087,2687.6,2687.0,7.4431]
[1727446977447,1.09936166,2687.9,2687.0,3.72162]
[1727446977448,4.81982166,2687.9,2687.0,3.72162]
[1727446977650,3.72055,2687.8,2687.3,3.72111]
[1727446977824,0.7603,2687.9,2687.4,3.72097]
[1727446978025,2.63031662,2688.0,2687.6,3.7207]
[1727446978325,2.63031662,2688.0,2687.8,3.7205]
[1727446978725,2.63031662,2688.0,2687.8,7.44093]
[1727446978925,2.63031662,2688.0,2687.8,4.464523]
[1727446979122,2.63031662,2688.0,2687.6,3.72069]
[1727446979327,2.63031662,2688.0,2687.9,3.72037]
[1727446981142,2.63031662,2688.0,2687.9,5.06667]
[1727446981345,2.63031662,2688.0,2687.9,8.06667]
[1727446981945,1.00593896,2690.2,2689.6,3.71797]
[1727446981946,3.71745,2690.1,2689.6,3.71797]
[1727446982145,1.00593896,2690.2,2689.7,3.71778]
[1727446982649,1.00593896,2690.2,2690.1,0.812]
[1727446982876,1.00593896,2690.2,2690.1,4.52933]
[1727446983186,1.00593896,2690.2,2689.0,3.5004885]
[1727446983187,0.34579151,2690.2,2689.6,0.8056]
[1727446983485,0.34579151,2690.2,2690.1,4.52293]
[1727446983648,0.34579151,2690.2,2690.1,8.07293]
[1727446983893,0.1123528,2690.5,2690.4,3.71691]
[1727446984233,0.1123528,2690.5,2690.4,12.95180134]
[1727446984437,0.0008,2692.0,2690.8,8.07886]
[1727446985083,0.0008,2692.0,2690.8,43.07886]
[1727446985289,0.0008,2692.0,2690.8,46.34514408]
[1727446985499,0.0008,2692.0,2690.8,11.89514408]
[1727446985702,0.0008,2692.0,2690.8,8.07886]
[1727446986083,0.0008,2692.0,2690.8,7.52886]
[1727446986285,0.0008,2692.0,2690.8,4.52886]
[1727446986914,0.7967,2691.7,2690.8,4.52886]
[1727446987230,0.0008,2692.0,2690.8,3.71636]
[1727446987433,3.71494,2691.9,2690.8,3.71636]
[1727446987601,0.8269,2691.4,2690.8,3.71636]
[1727446987934,0.8269,2691.4,2690.4,0.7625]
[1727446988139,0.7748,2690.8,2690.0,3.71735]
[1727446988303,0.7748,2690.8,2689.6,0.8314]
[1727446988502,0.7748,2690.8,2689.0,0.8314]
[1727446988704,0.7748,2690.8,2690.2,3.71707]
[1727446989013,0.7748,2690.8,2690.3,0.07433157]
[1727446989222,0.7748,2690.8,2689.7,0.8314]
[1727446989419,0.7748,2691.3,2690.8,3.71636]
[1727446989913,0.8271,2691.7,2690.8,3.71636]
[1727446990625,0.0008,2692.0,2690.8,7.26636]
[1727446990827,0.0008,2692.0,2690.8,9.197349]
[1727446991127,0.0008,2692.0,2690.8,3.71636]
[1727446991128,4.47702,2691.7,2690.8,3.71636]
[1727446991331,0.7618,2691.7,2690.4,3.71686]
[1727446991501,0.7618,2690.8,2689.9,3.7176]
[1727446991837,0.7618,2690.8,2690.0,3.71746]
[1727446992144,0.7618,2690.8,2690.2,3.71708]
[1727446992341,0.7618,2690.8,2689.7,0.7889]
[1727446992342,4.4783,2690.8,2689.8,3.71769]
[1727446992488,3.71664,2690.6,2689.6,3.71797]
[1727446993139,3.71744,2690.1,2689.2,3.7185]
[1727446993441,3.71757,2690.0,2689.1,3.71859]
[1727446993641,3.71719,2690.2,2689.3,3.7183]
[1727446993796,3.71748,2690.0,2689.3,3.7183]
[1727446994126,4.50171,2689.9,2688.5,4.51463]
[1727446994287,4.50171,2689.9,2688.9,3.71885]
[1727446994490,4.50176,2689.9,2689.2,3.71847]
[1727446994692,0.7841,2689.9,2689.5,3.71813]
[1727446994994,0.7841,2690.2,2689.2,0.7951]
[1727446995441,0.7841,2690.2,2690.0,3.71734]
[1727446995939,3.8448691,2690.9,2690.2,3.71709]
[1727446995940,0.8056,2690.8,2690.2,3.71709]
[1727446996292,0.8056,2690.8,2690.4,3.71681]
[1727446996497,0.8056,2690.8,2690.2,3.71718]
[1727446996721,0.8056,2690.8,2690.0,4.089144]
[1727446996939,4.522,2690.8,2690.0,3.71741]
[1727446997141,3.71674,2690.6,2689.8,3.71764]
[1727446997526,3.71674,2690.6,2689.1,4.2915226]
[1727446997527,0.7847,2690.7,2690.1,3.71732]
[1727446997702,3.71666,2690.6,2690.0,3.71736]
[1727446997903,0.7847,2690.7,2690.1,3.71728]
[1727446998227,0.7847,2690.7,2690.3,3.71703]
[1727446998435,0.7847,2690.7,2690.2,3.7171]
[1727446998736,3.71673,2690.6,2689.8,3.71765]
[1727446998966,0.7847,2690.7,2690.4,3.71682]
[1727446999179,0.1286091,2690.9,2690.1,0.7684]
[1727446999376,0.1286091,2690.9,2690.6,3.71654]
[1727446999731,0.1286091,2690.9,2690.5,3.71667]
[1727446999978,0.1286091,2690.9,2690.1,0.7684]
[1727446999979,0.1286091,2690.9,2690.6,4.088177]
[1727447000275,0.1286091,2690.9,2690.8,3.71636]
[1727447000427,0.1286091,2690.9,2690.4,3.71689]
[1727447000633,0.1286091,2690.9,2690.8,3.71636]
[1727447001083,0.8307,2690.8,2690.4,3.71691]
[1727447001235,3.71662,2690.7,2690.0,3.71736]
[1727447001434,0.8307,2690.8,2689.4,0.7684]
[1727447001764,0.8307,2690.5,2690.1,3.71723]
[1727447001957,0.8307,2690.8,2690.4,3.71691]
[1727447002136,0.8307,2690.8,2690.0,3.71741]
[1727447002330,0.8307,2690.8,2690.6,3.71655]
[1727447002574,0.1286091,2690.9,2690.8,3.71636]
[1727447002746,0.1286091,2690.9,2690.7,3.7165]
[1727447002934,0.1286091,2690.9,2690.8,3.71636]
[1727447003577,0.1286091,2690.9,2690.7,3.7165]
[1727447003875,0.1286091,2690.9,2690.5,7.43344]
[1727447004086,0.1286091,2690.9,2689.8,0.8137]
[1727447004371,0.1286091,2690.9,2690.6,3.71654]
[1727447005275,0.1286091,2690.9,2690.8,3.71636]
[1727447005947,0.1286091,2690.9,2690.7,3.7165]
[1727447006370,0.1286091,2690.9,2690.7,3.71642]
[1727447006686,0.7849,2690.8,2690.1,3.71725]
[1727447006973,3.71673,2690.6,2690.0,3.71735]
[1727447007146,3.71654,2690.7,2690.2,3.71717]
[1727447007350,3.71665,2690.6,2690.0,7.43474]
[1727447007547,3.71681,2690.5,2690.0,3.71735]
[1727447007862,0.8269,2690.4,2690.0,3.71735]
[1727447008071,0.8269,2690.6,2690.2,3.71714]
[1727447008237,0.8269,2690.6,2690.5,3.71678]
[1727447008437,0.1286091,2690.9,2690.2,0.371714]
[1727447008438,0.1286091,2690.9,2690.7,3.71639]
[1727447008971,0.1286091,2690.9,2690.2,0.371714]
[1727447008972,3.8448391,2690.9,2690.3,7.43393]
[1727447009175,3.8448391,2690.9,2690.4,3.71688]
[1727447009361,3.8448391,2690.9,2690.3,3.71696]
[1727447009537,0.1286091,2690.9,2690.3,0.371696]
[1727447009738,0.1286091,2690.9,2690.7,3.71639]
[1727447009960,0.1286091,2690.9,2690.7,7.4328]
[1727447010184,0.1286091,2690.9,2690.7,3.71639]
[1727447010345,0.1286091,2690.9,2690.5,3.7167]
[1727447010560,0.1286091,2690.9,2690.7,3.71637]
[1727447010774,0.1286091,2690.9,2690.8,3.7906777]
[1727447010981,0.1286091,2690.9,2690.8,3.71636]
[1727447013162,0.1286091,2690.9,2690.7,3.71637]
[1727447013163,0.9241091,2690.9,2690.7,3.71637]
[1727447013490,0.9241091,2690.9,2690.6,3.71663]
[1727447013688,0.9241091,2690.9,2690.5,3.71668]
[1727447014071,0.9241091,2690.9,2690.5,3.71666]
[1727447014272,0.9241091,2690.9,2690.7,3.71647]
[1727447014469,0.9241091,2690.9,2690.7,3.71641]
[1727447014675,2.05,2692.9,2690.7,3.71641]
[1727447014676,1.0,2836.4,2690.8,3.71636]
[1727447014986,1.0,2836.4,2691.2,3.71571]
[1727447014987,3.71501,2691.8,2691.2,3.71571]
[1727447015185,3.71501,2691.8,2691.3,19.42]
[1727447015403,3.71553,2691.4,2691.3,19.42]
[1727447015560,3.7155,2691.5,2691.3,19.42]
[1727447016062,3.71486,2691.9,2690.3,3.71699]
[1727447016063,4.87929134,2691.9,2690.4,0.05]
[1727447016277,3.71589,2691.2,2690.5,23.13674]
[1727447016610,3.71606,2691.1,2690.6,19.42]
[1727447016812,3.71582,2691.2,2690.7,19.42]
[1727447017302,3.7161,2691.0,2690.7,19.42]
[1727447017505,3.71582,2691.2,2690.7,19.42]
[1727447017747,0.7737,2691.5,2690.9,3.76613]
[1727447017866,0.7737,2691.5,2691.0,19.42]
[1727447018067,0.7737,2691.5,2691.1,19.42]
[1727447018418,0.7737,2691.5,2691.2,19.42]
[1727447018419,4.48918,2691.5,2691.2,19.42]
[1727447018711,3.71557,2691.4,2691.2,19.42]
[1727447018908,3.71557,2691.4,2691.0,19.42]
[1727447019107,0.7737,2691.5,2691.0,19.42]
[1727447019460,4.48923,2691.5,2691.1,19.42]
[1727447019664,3.7156,2691.4,2691.1,19.42]
[1727447019863,3.7156,2691.4,2691.0,19.42]
[1727447020089,8.20476,2691.5,2691.0,19.42]
[1727447020275,4.48923,2691.5,2691.1,19.42]
[1727447020473,4.48918,2691.5,2691.1,19.42]
[1727447020711,4.48918,2691.5,2690.9,0.05]
[1727447020712,3.71554,2691.4,2691.2,19.42]
[1727447020907,0.7737,2691.5,2691.2,19.42]
[1727447021203,0.8146,2691.8,2691.3,23.18558]
[1727447021405,0.8146,2691.8,2691.4,19.42]
[1727447021605,4.52959,2691.8,2691.4,19.42]
[1727447021771,0.8146,2691.8,2691.4,19.42]
[1727447022113,0.8146,2691.8,2691.5,19.42]
[1727447022295,0.8146,2691.8,2691.6,19.42]
[1727447022983,1.0933,2692.0,2691.6,19.42]
[1727447023167,3.71487,2691.9,2691.6,19.42]
[1727447023595,3.71487,2691.9,2691.6,19.47]
[1727447023815,3.71487,2691.9,2691.6,19.42]
[1727447024106,4.80801,2692.0,2691.7,0.05]
[1727447024409,1.0933,2692.0,2691.7,19.47]
[1727447026212,3.71454,2692.2,2691.7,19.47]
[1727447026523,3.71464,2692.1,2691.7,19.47]
[1727447026806,3.71444,2692.2,2691.7,23.18511]
[1727447027017,3.71444,2692.2,2691.7,26.08616105]
[1727447027512,4.90086,2692.3,2691.7,22.37105105]
[1727447027710,3.71457,2692.1,2691.7,19.47]
[1727447027874,3.71472,2692.0,2691.7,19.47]
[1727447028075,3.71457,2692.1,2691.7,0.05]
[1727447028271,3.71526,2691.6,2691.1,23.18588]
[1727447028472,3.71526,2691.6,2691.2,19.42]
[1727447028473,1.1488,2691.5,2691.2,19.42]
[1727447028781,1.1488,2692.1,2691.4,3.71545]
[1727447028999,4.86345,2692.1,2691.5,23.13531]
[1727447029198,1.1488,2692.1,2691.6,23.18518]
[1727447029380,1.1488,2692.1,2691.7,23.13504]
[1727447029590,1.1488,2692.1,2691.9,3.71471]
[1727447029782,3.7141,2692.5,2691.9,3.76471]
[1727447029997,4.81335,2692.4,2691.9,3.76471]
[1727447030170,3.71438,2692.3,2691.8,19.42]
[1727447030579,4.81335,2692.4,2691.8,19.42]
[1727447030807,3.71451,2692.2,2691.8,19.42]
[1727447030980,3.71444,2692.2,2691.8,19.42]
[1727447031401,4.81341,2692.4,2691.8,23.13491]
[1727447031608,4.81341,2692.4,2691.9,3.71482]
[1727447031821,4.81341,2692.4,2691.9,3.71476]
[1727447032117,4.81341,2692.4,2691.8,19.42]
[1727447032301,1.0992,2692.4,2691.8,19.42]
[1727447032501,3.7145,2692.2,2691.7,0.05]
[1727447032716,3.7145,2692.2,2691.7,3.76511]
[1727447032922,3.71429,2692.3,2691.8,0.42863609]
[1727447033229,3.71327,2693.1,2692.4,3.71408]
[1727447033389,4.85481,2693.3,2692.4,23.13414]
[1727447033585,3.71326,2693.1,2692.4,19.42]
[1727447033791,1.1418,2692.9,2692.4,19.42]
[1727447034030,1.1418,2692.9,2692.4,23.13412]
[1727447034189,1.1418,2692.9,2692.4,19.42]
[1727447034722,1.1418,2692.9,2692.4,23.13408]
[1727447035083,1.1418,2692.9,2692.7,3.71371]
[1727447035739,1.1418,2692.9,2692.7,3.71373]
[1727447036021,1.1418,2692.9,2692.6,19.42]
[1727447036433,1.1035,2693.2,2692.8,3.76353]
[1727447036661,1.1035,2693.2,2692.8,26.89699]
[1727447036866,1.1035,2693.2,2692.7,19.42]
[1727447037018,1.1035,2693.2,2692.9,3.71338]
[1727447037561,1.1035,2693.2,2693.0,3.71324]
[1727447037862,1.1035,2693.2,2692.7,23.13372]
[1727447038363,1.1035,2693.2,2692.7,19.42]
[1727447038649,1.1035,2693.2,2692.8,3.71359]
[1727447038961,1.1035,2693.2,2693.0,3.71333]
[1727447039126,0.005,2693.4,2692.9,19.42]
[1727447039331,0.005,2693.4,2693.3,3.71291]
[1727447039556,0.005,2693.4,2693.3,4.89751]
[1727447039860,0.005,2693.4,2693.3,24.36751]
[1727447040266,0.005,2693.4,2693.3,4.94751]
[1727447040470,1.1877,2695.6,2694.4,4.94979]
[1727447040688,3.71044,2695.1,2694.4,4.94979]
[1727447040967,4.89743,2695.7,2695.1,3.71041]
[1727447041175,1.1877,2695.7,2695.3,3.71013]
[1727447041463,1.1286,2696.1,2695.5,3.70986]
[1727447041664,1.1286,2696.1,2695.6,3.70973]
[1727447041976,4.8367,2696.8,2696.1,3.70903]
[1727447042143,4.8367,2696.8,2696.2,0.05]
[1727447042144,0.43224412,2696.8,2696.2,0.05]
[1727447042352,3.70811,2696.8,2696.2,0.05]
[1727447042654,3.70817,2697.4,2696.2,0.05]
[1727447042655,0.0008,2697.4,2696.2,0.05]
[1727447042855,0.0008,2697.4,2696.0,1.1867]
[1727447042856,0.0008,2697.4,2696.6,0.05]
[1727447043178,0.0008,2697.4,2696.7,0.05]
[1727447043383,0.0008,2697.4,2695.1,1.8074]
[1727447043384,3.70757,2697.2,2695.1,1.8074]
[1727447043682,3.70757,2697.2,2693.2,2.23847467]
[1727447043683,1.2052,2696.1,2695.2,0.05]
[1727447043982,3.70842,2696.6,2695.4,0.1]
[1727447044273,3.70842,2696.6,2695.2,1.1318]
[1727447044274,1.1328,2697.0,2696.2,3.80885]
[1727447044469,0.00731284,2696.8,2696.6,0.05]
[1727447044630,0.00731284,2696.8,2696.4,0.05]
[1727447044831,0.00731284,2696.8,2696.4,0.1]
[1727447045133,0.00731284,2696.8,2696.7,3.75823]
[1727447045468,0.00731284,2696.8,2696.7,27.0723]
[1727447046128,0.00731284,2696.8,2696.7,7.6523]
[1727447046323,0.00731284,2696.8,2696.7,4.95863]
[1727447046588,1.2008,2696.7,2695.7,0.05]
[1727447046735,1.2008,2696.7,2696.0,0.1]
[1727447046947,1.2008,2696.7,2696.1,3.70903]
[1727447047138,1.2008,2696.7,2695.7,0.05]
[1727447047456,4.19999328,2696.6,2695.5,0.05]
[1727447047769,4.19999328,2696.6,2693.8,11.46084216]
[1727447047770,1.1693,2696.3,2695.8,0.05]
[1727447048161,1.1693,2696.3,2695.6,3.70974]
[1727447048367,1.1693,2696.3,2695.8,0.05]
[1727447048564,1.1693,2696.7,2696.2,0.05]
[1727447048788,0.00731284,2696.8,2696.4,0.1]
[1727447049071,0.00731284,2696.8,2696.7,3.75823]
[1727447049592,0.00731284,2696.8,2696.7,4.90393]
[1727447049788,0.00731284,2696.8,2696.7,24.37393]
[1727447050257,0.00731284,2696.8,2696.7,27.732173]
[1727447050449,0.00731284,2696.8,2696.7,30.732173]
[1727447050964,0.00731284,2696.8,2696.7,30.182173]
[1727447051145,0.00731284,2696.8,2696.7,7.762173]
[1727447051346,0.00731284,2696.8,2696.7,4.95393]
[1727447052051,0.00731284,2696.8,2696.7,0.1]
[1727447052245,0.00731284,2696.8,2696.5,0.1]
[1727447052483,3.70828,2696.7,2696.1,0.1]